[Event "Titled Tuesday Blitz December 7 2021"]
[White "Durarbayli, Vasif"]
[Black "Maksimenko, Viktor"]
[WhiteFideId "13402935"]
[BlackFideId "13710478"]
[WhiteElo "2599"]
[BlackElo "2269"]
[Result "1-0"]
[Round "05"]
[TimeControl "180+1"]
[Date "2021.12.07"]
[WhiteClock "0:00:16"]
[BlackClock "0:00:07"]

1. e4 {[%clk 0:03:00]}  c6 {[%clk 0:02:58]} 2. d4 {[%clk 0:03:00]}  d5 {[%clk 0:02:59]} 3. exd5 {[%clk 0:03:01]}  cxd5 {[%clk 0:02:59]} 4. c4 {[%clk 0:03:02]}  Nf6 {[%clk 0:02:59]} 5. Nc3 {[%clk 0:03:02]}  Nc6 {[%clk 0:02:59]} 6. Nf3 {[%clk 0:03:02]}  e6 {[%clk 0:03:00]} 7. c5 {[%clk 0:03:01]}  Ne4 {[%clk 0:03:00]} 8. Bb5 {[%clk 0:02:53]}  Qa5 {[%clk 0:02:49]} 9. Qd3 {[%clk 0:02:45]}  a6 {[%clk 0:02:12]} 10. Bxc6+ {[%clk 0:02:44]}  bxc6 {[%clk 0:02:13]} 11. Ne5 {[%clk 0:02:38]}  Nxc3 {[%clk 0:02:08]} 12. bxc3 {[%clk 0:02:21]}  Qa4 {[%clk 0:01:36]} 13. Qf3 {[%clk 0:01:51]}  Ra7 {[%clk 0:01:36]} 14. O-O {[%clk 0:01:50]}  f6 {[%clk 0:01:34]} 15. Qh5+ {[%clk 0:01:32]}  g6 {[%clk 0:01:07]} 16. Nxg6 {[%clk 0:01:30]}  Rg8 {[%clk 0:00:58]} 17. Nxf8+ {[%clk 0:01:08]}  Kxf8 {[%clk 0:00:59]} 18. Rb1 {[%clk 0:01:08]}  Qa5 {[%clk 0:00:38]} 19. Bf4 {[%clk 0:00:51]}  Qd8 {[%clk 0:00:23]} 20. Rb8 {[%clk 0:00:46]}  Kg7 {[%clk 0:00:18]} 21. Qh6+ {[%clk 0:00:46]}  Kh8 {[%clk 0:00:19]} 22. Rxc8 {[%clk 0:00:45]}  Qxc8 {[%clk 0:00:20]} 23. Qxf6+ {[%clk 0:00:45]}  Rag7 {[%clk 0:00:21]} 24. Be5 {[%clk 0:00:29]}  Qb7 {[%clk 0:00:14]} 25. Qxe6 {[%clk 0:00:19]}  a5 {[%clk 0:00:12]} 26. Qh6 {[%clk 0:00:18]}  a4 {[%clk 0:00:11]} 27. g3 {[%clk 0:00:18]}  a3 {[%clk 0:00:11]} 28. h4 {[%clk 0:00:19]}  Qb2 {[%clk 0:00:10]} 29. h5 {[%clk 0:00:16]}  Qxa2 {[%clk 0:00:07]} 30. Qf6 {[%clk 0:00:16]} 1-0


[Site "https://www.chess.com"]

[Event "Titled Tuesday Blitz December 7 2021"]
[White "Dzhaparov, Medet"]
[Black "Dolzhykova, Kateryna"]
[WhiteFideId "13803689"]
[BlackFideId "14113414"]
[WhiteElo "1702"]
[BlackElo "2094"]
[Result "1-0"]
[Round "05"]
[TimeControl "180+1"]
[Date "2021.12.07"]
[WhiteClock "0:00:12"]
[BlackClock "0:00:02"]

1. d4 {[%clk 0:02:44]}  Nf6 {[%clk 0:02:58]} 2. c4 {[%clk 0:02:43]}  e6 {[%clk 0:02:58]} 3. Nc3 {[%clk 0:02:43]}  d5 {[%clk 0:02:57]} 4. cxd5 {[%clk 0:02:43]}  exd5 {[%clk 0:02:58]} 5. Bg5 {[%clk 0:02:43]}  c6 {[%clk 0:02:58]} 6. e3 {[%clk 0:02:38]}  Be7 {[%clk 0:02:57]} 7. Bd3 {[%clk 0:02:37]}  h6 {[%clk 0:02:57]} 8. Bh4 {[%clk 0:02:30]}  O-O {[%clk 0:02:58]} 9. Qc2 {[%clk 0:02:29]}  Re8 {[%clk 0:02:57]} 10. Nge2 {[%clk 0:02:26]}  Nbd7 {[%clk 0:02:56]} 11. O-O {[%clk 0:02:18]}  Ne4 {[%clk 0:02:54]} 12. Bxe7 {[%clk 0:02:13]}  Qxe7 {[%clk 0:02:55]} 13. Rae1 {[%clk 0:01:55]}  Ndf6 {[%clk 0:02:54]} 14. f3 {[%clk 0:01:52]}  Nxc3 {[%clk 0:02:51]} 15. Nxc3 {[%clk 0:01:50]}  c5 {[%clk 0:02:41]} 16. dxc5 {[%clk 0:01:38]}  Qxc5 {[%clk 0:02:29]} 17. Nb5 {[%clk 0:01:33]}  Qxc2 {[%clk 0:02:17]} 18. Bxc2 {[%clk 0:01:33]}  Re7 {[%clk 0:02:15]} 19. Kf2 {[%clk 0:01:31]}  Be6 {[%clk 0:02:05]} 20. Bb3 {[%clk 0:01:26]}  a6 {[%clk 0:01:59]} 21. Nd4 {[%clk 0:01:25]}  Rc8 {[%clk 0:01:57]} 22. Rc1 {[%clk 0:01:23]}  Rec7 {[%clk 0:01:56]} 23. Rxc7 {[%clk 0:01:22]}  Rxc7 {[%clk 0:01:57]} 24. Rd1 {[%clk 0:01:18]}  Kf8 {[%clk 0:01:38]} 25. g4 {[%clk 0:01:11]}  Ke7 {[%clk 0:01:33]} 26. h4 {[%clk 0:01:07]}  g5 {[%clk 0:01:18]} 27. Kg3 {[%clk 0:01:03]}  Rc5 {[%clk 0:01:00]} 28. Rh1 {[%clk 0:00:56]}  b5 {[%clk 0:00:57]} 29. hxg5 {[%clk 0:00:55]}  hxg5 {[%clk 0:00:57]} 30. Rh8 {[%clk 0:00:56]}  a5 {[%clk 0:00:55]} 31. a3 {[%clk 0:00:36]}  Rc1 {[%clk 0:00:35]} 32. Nxb5 {[%clk 0:00:21]}  Rb1 {[%clk 0:00:34]} 33. Rh2 {[%clk 0:00:22]}  Nd7 {[%clk 0:00:30]} 34. Nc3 {[%clk 0:00:20]}  Rc1 {[%clk 0:00:27]} 35. Rd2 {[%clk 0:00:14]}  Nb6 {[%clk 0:00:13]} 36. Nxd5+ {[%clk 0:00:12]}  Bxd5 {[%clk 0:00:13]} 37. Bxd5 {[%clk 0:00:12]}  f6 {[%clk 0:00:13]} 38. e4 {[%clk 0:00:08]}  Na4 {[%clk 0:00:12]} 39. b3 {[%clk 0:00:08]}  Nc3 {[%clk 0:00:08]} 40. Bc4 {[%clk 0:00:08]}  Nb1 {[%clk 0:00:07]} 41. Rd5 {[%clk 0:00:07]}  Nxa3 {[%clk 0:00:06]} 42. Rxa5 {[%clk 0:00:07]}  Nxc4 {[%clk 0:00:06]} 43. Rc5 {[%clk 0:00:08]}  Rg1+ {[%clk 0:00:05]} 44. Kf2 {[%clk 0:00:08]}  Rb1 {[%clk 0:00:06]} 45. bxc4 {[%clk 0:00:08]}  Rc1 {[%clk 0:00:05]} 46. Rc7+ {[%clk 0:00:08]}  Kd6 {[%clk 0:00:05]} 47. Rf7 {[%clk 0:00:08]}  Ke6 {[%clk 0:00:05]} 48. Rc7 {[%clk 0:00:08]}  Kd6 {[%clk 0:00:06]} 49. Rc8 {[%clk 0:00:08]}  Kd7 {[%clk 0:00:06]} 50. Rc5 {[%clk 0:00:09]}  Kd6 {[%clk 0:00:06]} 51. Rd5+ {[%clk 0:00:10]}  Ke6 {[%clk 0:00:06]} 52. c5 {[%clk 0:00:10]}  Rc2+ {[%clk 0:00:06]} 53. Kg3 {[%clk 0:00:10]}  Rc3 {[%clk 0:00:06]} 54. Rd6+ {[%clk 0:00:11]}  Ke7 {[%clk 0:00:04]} 55. Rc6 {[%clk 0:00:11]}  Kd7 {[%clk 0:00:04]} 56. Rxf6 {[%clk 0:00:10]}  Rxc5 {[%clk 0:00:04]} 57. Rf5 {[%clk 0:00:11]}  Rxf5 {[%clk 0:00:02]} 58. gxf5 {[%clk 0:00:11]}  Ke7 {[%clk 0:00:02]} 59. e5 {[%clk 0:00:12]} 1-0


[Site "https://www.chess.com"]

[Event "Titled Tuesday Blitz December 7 2021"]
[White "Gabdushev, Ruslan"]
[Black "Materia, Marco"]
[WhiteFideId "4137833"]
[BlackFideId "45150451"]
[WhiteElo "2312"]
[BlackElo "2587"]
[Result "0-1"]
[Round "05"]
[TimeControl "180+1"]
[Date "2021.12.07"]
[WhiteClock "0:00:03"]
[BlackClock "0:00:28"]

1. c4 {[%clk 0:03:00]}  e6 {[%clk 0:02:58]} 2. g3 {[%clk 0:02:59]}  Nf6 {[%clk 0:02:58]} 3. Bg2 {[%clk 0:02:59]}  d5 {[%clk 0:02:58]} 4. Nf3 {[%clk 0:02:58]}  c6 {[%clk 0:02:55]} 5. O-O {[%clk 0:02:57]}  Bd6 {[%clk 0:02:55]} 6. Qc2 {[%clk 0:02:49]}  O-O {[%clk 0:02:54]} 7. d4 {[%clk 0:02:47]}  Nbd7 {[%clk 0:02:49]} 8. Nbd2 {[%clk 0:02:42]}  b6 {[%clk 0:02:41]} 9. b3 {[%clk 0:02:41]}  Bb7 {[%clk 0:02:40]} 10. Bb2 {[%clk 0:02:41]}  Qe7 {[%clk 0:02:34]} 11. Ne5 {[%clk 0:02:30]}  c5 {[%clk 0:02:32]} 12. Nxd7 {[%clk 0:02:23]}  Nxd7 {[%clk 0:02:31]} 13. e3 {[%clk 0:02:16]}  Rac8 {[%clk 0:02:28]} 14. dxc5 {[%clk 0:02:05]}  Nxc5 {[%clk 0:02:21]} 15. Rac1 {[%clk 0:01:54]}  Rfd8 {[%clk 0:02:04]} 16. Qb1 {[%clk 0:01:37]}  Bb8 {[%clk 0:01:46]} 17. Rfd1 {[%clk 0:01:20]}  dxc4 {[%clk 0:01:34]} 18. Nxc4 {[%clk 0:01:19]}  Bxg2 {[%clk 0:01:34]} 19. Kxg2 {[%clk 0:01:19]}  Qb7+ {[%clk 0:01:26]} 20. Kg1 {[%clk 0:01:01]}  Qf3 {[%clk 0:01:23]} 21. Nd2 {[%clk 0:00:44]}  Qe2 {[%clk 0:01:19]} 22. Bd4 {[%clk 0:00:43]}  Nd3 {[%clk 0:01:17]} 23. Rxc8 {[%clk 0:00:26]}  Rxc8 {[%clk 0:01:17]} 24. e4 {[%clk 0:00:21]}  e5 {[%clk 0:01:05]} 25. Be3 {[%clk 0:00:21]}  h5 {[%clk 0:00:51]} 26. Nc4 {[%clk 0:00:19]}  Nb4 {[%clk 0:00:49]} 27. a3 {[%clk 0:00:17]}  Nc6 {[%clk 0:00:46]} 28. Qd3 {[%clk 0:00:16]}  Qg4 {[%clk 0:00:45]} 29. Rc1 {[%clk 0:00:13]}  h4 {[%clk 0:00:42]} 30. Qd1 {[%clk 0:00:12]}  Qg6 {[%clk 0:00:40]} 31. Qf3 {[%clk 0:00:12]}  Ne7 {[%clk 0:00:34]} 32. Kg2 {[%clk 0:00:10]}  Qe6 {[%clk 0:00:30]} 33. Qe2 {[%clk 0:00:03]}  Ng6 {[%clk 0:00:28]} 0-1


[Site "https://www.chess.com"]

[Event "Titled Tuesday Blitz December 7 2021"]
[White "Garagulya, Konstantin"]
[Black "Zhigalko, Sergei"]
[WhiteFideId "4128931"]
[BlackFideId "13502956"]
[WhiteElo "2329"]
[BlackElo "2662"]
[Result "0-1"]
[Round "05"]
[TimeControl "180+1"]
[Date "2021.12.07"]
[WhiteClock "0:00:02"]
[BlackClock "0:00:20"]

1. d4 {[%clk 0:02:52]}  Nf6 {[%clk 0:02:59]} 2. Nf3 {[%clk 0:02:53]}  e6 {[%clk 0:02:59]} 3. g3 {[%clk 0:02:51]}  b5 {[%clk 0:02:59]} 4. Bg2 {[%clk 0:02:51]}  Bb7 {[%clk 0:02:59]} 5. O-O {[%clk 0:02:52]}  Be7 {[%clk 0:02:59]} 6. a4 {[%clk 0:02:52]}  b4 {[%clk 0:03:00]} 7. c3 {[%clk 0:02:53]}  a5 {[%clk 0:03:00]} 8. Nbd2 {[%clk 0:02:52]}  O-O {[%clk 0:03:00]} 9. Nb3 {[%clk 0:02:52]}  d6 {[%clk 0:02:58]} 10. Be3 {[%clk 0:02:43]}  Nbd7 {[%clk 0:02:53]} 11. cxb4 {[%clk 0:02:35]}  axb4 {[%clk 0:02:53]} 12. Qc2 {[%clk 0:02:30]}  Be4 {[%clk 0:02:49]} 13. Qc1 {[%clk 0:02:27]}  Qb8 {[%clk 0:02:46]} 14. Bd2 {[%clk 0:02:09]}  Rc8 {[%clk 0:02:37]} 15. Ng5 {[%clk 0:01:39]}  Bxg2 {[%clk 0:02:36]} 16. Kxg2 {[%clk 0:01:39]}  c5 {[%clk 0:02:34]} 17. dxc5 {[%clk 0:01:39]}  dxc5 {[%clk 0:02:34]} 18. Qc4 {[%clk 0:01:23]}  Ne5 {[%clk 0:02:25]} 19. Qc2 {[%clk 0:00:48]}  Qb7+ {[%clk 0:02:19]} 20. f3 {[%clk 0:00:36]}  h6 {[%clk 0:02:05]} 21. Nh3 {[%clk 0:00:36]}  c4 {[%clk 0:02:05]} 22. Nd4 {[%clk 0:00:36]}  c3 {[%clk 0:02:06]} 23. bxc3 {[%clk 0:00:36]}  bxc3 {[%clk 0:02:06]} 24. Bc1 {[%clk 0:00:35]}  Nd5 {[%clk 0:01:55]} 25. Nf4 {[%clk 0:00:16]}  Nb4 {[%clk 0:01:54]} 26. Qb3 {[%clk 0:00:16]}  Qa6 {[%clk 0:01:26]} 27. Re1 {[%clk 0:00:13]}  Rab8 {[%clk 0:01:23]} 28. Qd1 {[%clk 0:00:06]}  c2 {[%clk 0:01:14]} 29. Qd2 {[%clk 0:00:05]}  Nc4 {[%clk 0:01:15]} 30. Qc3 {[%clk 0:00:05]}  Nd6 {[%clk 0:00:51]} 31. Qe3 {[%clk 0:00:04]}  Nc4 {[%clk 0:00:47]} 32. Qc3 {[%clk 0:00:04]}  Na5 {[%clk 0:00:27]} 33. Qe3 {[%clk 0:00:04]}  Bc5 {[%clk 0:00:28]} 34. Bb2 {[%clk 0:00:02]}  Nc4 {[%clk 0:00:27]} 35. Qc3 {[%clk 0:00:02]}  Nxb2 {[%clk 0:00:24]} 36. Qxb2 {[%clk 0:00:02]}  Nd3 {[%clk 0:00:20]} 0-1


[Site "https://www.chess.com"]

[Event "Titled Tuesday Blitz December 7 2021"]
[White "Goltsev, Dmitry"]
[Black "Mitusov, Semen"]
[WhiteFideId "24176710"]
[BlackFideId "14151049"]
[WhiteElo "2259"]
[BlackElo "2246"]
[Result "0-1"]
[Round "05"]
[TimeControl "180+1"]
[Date "2021.12.07"]
[WhiteClock "0:00:06"]
[BlackClock "0:00:12"]

1. e4 {[%clk 0:02:53]}  e5 {[%clk 0:02:59]} 2. Nf3 {[%clk 0:02:54]}  Nc6 {[%clk 0:02:59]} 3. d4 {[%clk 0:02:54]}  exd4 {[%clk 0:02:59]} 4. Nxd4 {[%clk 0:02:55]}  Bc5 {[%clk 0:02:59]} 5. Nb3 {[%clk 0:02:55]}  Bb6 {[%clk 0:02:59]} 6. Nc3 {[%clk 0:02:55]}  d6 {[%clk 0:02:59]} 7. Bc4 {[%clk 0:02:51]}  Nf6 {[%clk 0:02:55]} 8. Bg5 {[%clk 0:02:48]}  h6 {[%clk 0:02:40]} 9. Bh4 {[%clk 0:02:47]}  Be6 {[%clk 0:02:39]} 10. Nd5 {[%clk 0:02:46]}  Bxd5 {[%clk 0:02:37]} 11. exd5 {[%clk 0:02:44]}  Qe7+ {[%clk 0:02:32]} 12. Qe2 {[%clk 0:02:36]}  Qxe2+ {[%clk 0:02:14]} 13. Bxe2 {[%clk 0:02:37]}  Nxd5 {[%clk 0:02:10]} 14. O-O-O {[%clk 0:02:33]}  Nf4 {[%clk 0:02:03]} 15. Bf3 {[%clk 0:02:32]}  O-O {[%clk 0:01:58]} 16. Bg3 {[%clk 0:02:28]}  Ng6 {[%clk 0:01:54]} 17. Bxc6 {[%clk 0:02:23]}  bxc6 {[%clk 0:01:53]} 18. Rhe1 {[%clk 0:02:24]}  Rfe8 {[%clk 0:01:52]} 19. a4 {[%clk 0:02:22]}  a6 {[%clk 0:01:51]} 20. a5 {[%clk 0:02:21]}  Ba7 {[%clk 0:01:50]} 21. c4 {[%clk 0:02:19]}  f5 {[%clk 0:01:36]} 22. h3 {[%clk 0:02:13]}  f4 {[%clk 0:01:35]} 23. Bh2 {[%clk 0:02:13]}  Rxe1 {[%clk 0:01:27]} 24. Rxe1 {[%clk 0:02:13]}  Bxf2 {[%clk 0:01:28]} 25. Re2 {[%clk 0:02:08]}  Be3+ {[%clk 0:01:27]} 26. Kc2 {[%clk 0:02:07]}  Ne5 {[%clk 0:01:19]} 27. g3 {[%clk 0:01:55]}  Nxc4 {[%clk 0:01:09]} 28. gxf4 {[%clk 0:01:54]}  d5 {[%clk 0:01:08]} 29. Kc3 {[%clk 0:01:52]}  Rf8 {[%clk 0:01:06]} 30. f5 {[%clk 0:01:49]}  Rxf5 {[%clk 0:01:04]} 31. Bxc7 {[%clk 0:01:49]}  Rf3 {[%clk 0:01:00]} 32. Kb4 {[%clk 0:01:46]}  Rxh3 {[%clk 0:01:00]} 33. Nc5 {[%clk 0:01:45]}  Bd2+ {[%clk 0:00:58]} 34. Rxd2 {[%clk 0:01:43]}  Nxd2 {[%clk 0:00:58]} 35. Nxa6 {[%clk 0:01:44]}  Rb3+ {[%clk 0:00:57]} 36. Ka4 {[%clk 0:01:44]}  Rxb2 {[%clk 0:00:56]} 37. Nb4 {[%clk 0:01:43]}  Ne4 {[%clk 0:00:51]} 38. Nxc6 {[%clk 0:01:40]}  Nc3+ {[%clk 0:00:42]} 39. Ka3 {[%clk 0:01:38]}  Rb1 {[%clk 0:00:40]} 40. Be5 {[%clk 0:01:34]}  Nb5+ {[%clk 0:00:39]} 41. Ka4 {[%clk 0:01:33]}  h5 {[%clk 0:00:36]} 42. a6 {[%clk 0:01:32]}  h4 {[%clk 0:00:36]} 43. Nb4 {[%clk 0:01:23]}  Na7 {[%clk 0:00:34]} 44. Nxd5 {[%clk 0:01:21]}  h3 {[%clk 0:00:33]} 45. Nb4 {[%clk 0:01:17]}  Re1 {[%clk 0:00:25]} 46. Bb8 {[%clk 0:01:12]}  Nc8 {[%clk 0:00:24]} 47. Kb5 {[%clk 0:01:09]}  Re2 {[%clk 0:00:23]} 48. Kc6 {[%clk 0:01:08]}  h2 {[%clk 0:00:20]} 49. Bxh2 {[%clk 0:01:07]}  Rxh2 {[%clk 0:00:21]} 50. Nd5 {[%clk 0:01:05]}  Rc2+ {[%clk 0:00:21]} 51. Kb7 {[%clk 0:01:02]}  g5 {[%clk 0:00:20]} 52. Nc7 {[%clk 0:01:01]}  Nd6+ {[%clk 0:00:20]} 53. Kb6 {[%clk 0:00:59]}  Nc4+ {[%clk 0:00:17]} 54. Kc6 {[%clk 0:00:57]}  Na5+ {[%clk 0:00:15]} 55. Kb6 {[%clk 0:00:55]}  Nc4+ {[%clk 0:00:15]} 56. Kc6 {[%clk 0:00:54]}  Ra2 {[%clk 0:00:15]} 57. Kb5 {[%clk 0:00:47]}  Nd6+ {[%clk 0:00:15]} 58. Kc6 {[%clk 0:00:45]}  Ne4 {[%clk 0:00:14]} 59. Kd5 {[%clk 0:00:41]}  Nc3+ {[%clk 0:00:13]} 60. Kc4 {[%clk 0:00:37]}  Ne2 {[%clk 0:00:13]} 61. Kd3 {[%clk 0:00:34]}  Nc1+ {[%clk 0:00:13]} 62. Ke4 {[%clk 0:00:33]}  Kf7 {[%clk 0:00:13]} 63. Kf5 {[%clk 0:00:30]}  Ra5+ {[%clk 0:00:14]} 64. Kg4 {[%clk 0:00:29]}  Nb3 {[%clk 0:00:14]} 65. Kh5 {[%clk 0:00:25]}  Nc5 {[%clk 0:00:14]} 66. a7 {[%clk 0:00:22]}  Rxa7 {[%clk 0:00:14]} 67. Nb5 {[%clk 0:00:23]}  Ra5 {[%clk 0:00:14]} 68. Nd6+ {[%clk 0:00:20]}  Ke6 {[%clk 0:00:14]} 69. Nc4 {[%clk 0:00:17]}  Ra4 {[%clk 0:00:15]} 70. Nd2 {[%clk 0:00:17]}  Kf5 {[%clk 0:00:14]} 71. Nf3 {[%clk 0:00:16]}  Rf4 {[%clk 0:00:13]} 72. Nxg5 {[%clk 0:00:16]}  Ne4 {[%clk 0:00:12]} 73. Nf7 {[%clk 0:00:12]}  Ng3+ {[%clk 0:00:11]} 74. Kh6 {[%clk 0:00:13]}  Kf6 {[%clk 0:00:12]} 75. Ng5 {[%clk 0:00:06]}  Rh4# {[%clk 0:00:12]} 0-1


[Site "https://www.chess.com"]

[Event "Titled Tuesday Blitz December 7 2021"]
[White "Guliev, Logman"]
[Black "Leitao, Rafael"]
[WhiteFideId "13400061"]
[BlackFideId "2101246"]
[WhiteElo "2128"]
[BlackElo "2609"]
[Result "0-1"]
[Round "05"]
[TimeControl "180+1"]
[Date "2021.12.07"]
[WhiteClock "0:01:47"]
[BlackClock "0:01:30"]

1. e4 {[%clk 0:03:00]}  e5 {[%clk 0:02:59]} 2. Nf3 {[%clk 0:03:00]}  Nc6 {[%clk 0:03:00]} 3. Bb5 {[%clk 0:03:00]}  a6 {[%clk 0:02:59]} 4. Ba4 {[%clk 0:02:59]}  Nf6 {[%clk 0:03:00]} 5. O-O {[%clk 0:02:59]}  b5 {[%clk 0:03:00]} 6. Bb3 {[%clk 0:02:59]}  Bc5 {[%clk 0:03:01]} 7. c3 {[%clk 0:02:58]}  d6 {[%clk 0:03:00]} 8. d4 {[%clk 0:02:58]}  Bb6 {[%clk 0:03:00]} 9. a4 {[%clk 0:02:58]}  Rb8 {[%clk 0:03:00]} 10. axb5 {[%clk 0:02:56]}  axb5 {[%clk 0:02:59]} 11. Na3 {[%clk 0:02:57]}  O-O {[%clk 0:02:52]} 12. Nxb5 {[%clk 0:02:54]}  Bg4 {[%clk 0:02:51]} 13. Bc2 {[%clk 0:02:53]}  Bxf3 {[%clk 0:02:41]} 14. gxf3 {[%clk 0:02:53]}  Nh5 {[%clk 0:02:36]} 15. f4 {[%clk 0:02:51]}  Nxf4 {[%clk 0:02:36]} 16. Bxf4 {[%clk 0:02:50]}  exf4 {[%clk 0:02:37]} 17. Qg4 {[%clk 0:02:50]}  Qf6 {[%clk 0:02:31]} 18. b4 {[%clk 0:02:49]}  Ne7 {[%clk 0:02:23]} 19. Kh1 {[%clk 0:02:37]}  Ng6 {[%clk 0:02:06]} 20. Na3 {[%clk 0:02:33]}  c5 {[%clk 0:01:50]} 21. bxc5 {[%clk 0:02:27]}  dxc5 {[%clk 0:01:49]} 22. d5 {[%clk 0:01:57]}  Qxc3 {[%clk 0:01:38]} 23. f3 {[%clk 0:01:47]}  Ra8 {[%clk 0:01:30]} 0-1


[Site "https://www.chess.com"]

[Event "Titled Tuesday Blitz December 7 2021"]
[White "Hakemi, Arman"]
[Black "Marcziter, Dmitrii"]
[WhiteFideId "22520805"]
[BlackFideId "13900765"]
[WhiteElo "2208"]
[BlackElo "2155"]
[Result "1-0"]
[Round "05"]
[TimeControl "180+1"]
[Date "2021.12.07"]
[WhiteClock "0:00:18"]
[BlackClock "0:00:01"]

1. e4 {[%clk 0:03:00]}  c5 {[%clk 0:02:58]} 2. Nf3 {[%clk 0:02:58]}  a6 {[%clk 0:02:58]} 3. c3 {[%clk 0:02:57]}  d5 {[%clk 0:02:58]} 4. exd5 {[%clk 0:02:57]}  Qxd5 {[%clk 0:02:58]} 5. d4 {[%clk 0:02:58]}  Nf6 {[%clk 0:02:58]} 6. dxc5 {[%clk 0:02:56]}  Qxc5 {[%clk 0:02:57]} 7. Be3 {[%clk 0:02:55]}  Qc7 {[%clk 0:02:57]} 8. Na3 {[%clk 0:02:56]}  Nbd7 {[%clk 0:02:50]} 9. Be2 {[%clk 0:02:52]}  e6 {[%clk 0:02:48]} 10. O-O {[%clk 0:02:52]}  Bxa3 {[%clk 0:02:45]} 11. bxa3 {[%clk 0:02:53]}  O-O {[%clk 0:02:45]} 12. c4 {[%clk 0:02:43]}  b6 {[%clk 0:02:41]} 13. a4 {[%clk 0:02:37]}  Bb7 {[%clk 0:02:38]} 14. Rb1 {[%clk 0:02:36]}  Bc6 {[%clk 0:02:36]} 15. Qb3 {[%clk 0:02:34]}  Rab8 {[%clk 0:02:34]} 16. Qa3 {[%clk 0:02:31]}  Be4 {[%clk 0:02:26]} 17. Rbc1 {[%clk 0:02:29]}  Nc5 {[%clk 0:02:26]} 18. a5 {[%clk 0:02:27]}  Rfc8 {[%clk 0:02:16]} 19. axb6 {[%clk 0:02:21]}  Rxb6 {[%clk 0:02:16]} 20. Rfd1 {[%clk 0:02:14]}  h6 {[%clk 0:02:00]} 21. Nd2 {[%clk 0:02:03]}  Bb7 {[%clk 0:01:53]} 22. Nb3 {[%clk 0:01:47]}  Nfd7 {[%clk 0:01:43]} 23. Nxc5 {[%clk 0:01:42]}  Nxc5 {[%clk 0:01:42]} 24. Rd2 {[%clk 0:01:38]}  Rd6 {[%clk 0:01:32]} 25. Bf4 {[%clk 0:01:14]}  Rxd2 {[%clk 0:01:26]} 26. Bxc7 {[%clk 0:01:13]}  Rxc7 {[%clk 0:01:26]} 27. Qe3 {[%clk 0:01:07]}  Rxa2 {[%clk 0:01:21]} 28. Rd1 {[%clk 0:01:07]}  a5 {[%clk 0:01:08]} 29. h4 {[%clk 0:01:02]}  a4 {[%clk 0:01:06]} 30. Rd8+ {[%clk 0:00:54]}  Kh7 {[%clk 0:01:06]} 31. Bd3+ {[%clk 0:00:44]}  f5 {[%clk 0:01:00]} 32. Qg3 {[%clk 0:00:30]}  Rf7 {[%clk 0:00:24]} 33. h5 {[%clk 0:00:29]}  Rf6 {[%clk 0:00:22]} 34. Qc7 {[%clk 0:00:18]}  Nxd3 {[%clk 0:00:19]} 35. Rd7 {[%clk 0:00:19]}  Ra1+ {[%clk 0:00:13]} 36. Kh2 {[%clk 0:00:19]}  Kg8 {[%clk 0:00:01]} 37. Rxg7+ {[%clk 0:00:18]} 1-0


[Site "https://www.chess.com"]

[Event "Titled Tuesday Blitz December 7 2021"]
[White "Halkias, Stelios"]
[Black "Maly, Alexey"]
[WhiteFideId "4201809"]
[BlackFideId "14103184"]
[WhiteElo "2575"]
[BlackElo "2294"]
[Result "1/2-1/2"]
[Round "05"]
[TimeControl "180+1"]
[Date "2021.12.07"]
[WhiteClock "0:02:07"]
[BlackClock "0:02:45"]

1. e4 {[%clk 0:02:58]}  c6 {[%clk 0:02:59]} 2. d4 {[%clk 0:02:58]}  d5 {[%clk 0:03:00]} 3. e5 {[%clk 0:02:58]}  Bf5 {[%clk 0:02:59]} 4. h4 {[%clk 0:02:58]}  h5 {[%clk 0:02:59]} 5. Bd3 {[%clk 0:02:58]}  Bxd3 {[%clk 0:02:59]} 6. Qxd3 {[%clk 0:02:59]}  e6 {[%clk 0:03:00]} 7. Bg5 {[%clk 0:02:58]}  Qa5+ {[%clk 0:03:00]} 8. Nd2 {[%clk 0:02:58]}  Qa6 {[%clk 0:03:01]} 9. c4 {[%clk 0:02:56]}  Bb4 {[%clk 0:03:01]} 10. b3 {[%clk 0:02:54]}  Ne7 {[%clk 0:03:01]} 11. Nf3 {[%clk 0:02:54]}  Nf5 {[%clk 0:03:01]} 12. O-O {[%clk 0:02:54]}  Nd7 {[%clk 0:03:01]} 13. Rfd1 {[%clk 0:02:53]}  c5 {[%clk 0:03:01]} 14. a3 {[%clk 0:02:13]}  Bxd2 {[%clk 0:02:59]} 15. Bxd2 {[%clk 0:02:12]}  cxd4 {[%clk 0:02:56]} 16. Bb4 {[%clk 0:02:12]}  dxc4 {[%clk 0:02:53]} 17. bxc4 {[%clk 0:02:11]}  Qb6 {[%clk 0:02:48]} 18. Rab1 {[%clk 0:02:07]}  Nc5 {[%clk 0:02:45]} 1/2-1/2


[Site "https://www.chess.com"]

[Event "Titled Tuesday Blitz December 7 2021"]
[White "Harshavardhan G B"]
[Black "Rasulov, Vugar"]
[WhiteFideId "25059009"]
[BlackFideId "13402390"]
[WhiteElo "1825"]
[BlackElo "2560"]
[Result "0-1"]
[Round "05"]
[TimeControl "180+1"]
[Date "2021.12.07"]
[WhiteClock "0:00:11"]
[BlackClock "0:01:36"]

1. c4 {[%clk 0:02:56]}  Nf6 {[%clk 0:02:59]} 2. Nc3 {[%clk 0:02:51]}  e5 {[%clk 0:03:00]} 3. Nf3 {[%clk 0:02:50]}  Nc6 {[%clk 0:02:59]} 4. e4 {[%clk 0:02:48]}  Bb4 {[%clk 0:02:57]} 5. d3 {[%clk 0:02:45]}  Bxc3+ {[%clk 0:02:56]} 6. bxc3 {[%clk 0:02:45]}  O-O {[%clk 0:02:57]} 7. g3 {[%clk 0:02:43]}  h6 {[%clk 0:02:57]} 8. Bg2 {[%clk 0:02:43]}  d6 {[%clk 0:02:57]} 9. O-O {[%clk 0:02:43]}  a6 {[%clk 0:02:57]} 10. Be3 {[%clk 0:02:41]}  b5 {[%clk 0:02:56]} 11. c5 {[%clk 0:02:40]}  d5 {[%clk 0:02:54]} 12. Nd2 {[%clk 0:01:59]}  Bg4 {[%clk 0:02:46]} 13. f3 {[%clk 0:01:57]}  Be6 {[%clk 0:02:47]} 14. h3 {[%clk 0:01:40]}  Qd7 {[%clk 0:02:39]} 15. Kh2 {[%clk 0:01:36]}  Rad8 {[%clk 0:02:39]} 16. f4 {[%clk 0:01:21]}  dxe4 {[%clk 0:02:39]} 17. Nxe4 {[%clk 0:01:21]}  Qxd3 {[%clk 0:02:27]} 18. Nxf6+ {[%clk 0:01:13]}  gxf6 {[%clk 0:02:26]} 19. Qe1 {[%clk 0:01:05]}  Bd5 {[%clk 0:02:16]} 20. Rd1 {[%clk 0:01:02]}  Qc4 {[%clk 0:02:10]} 21. fxe5 {[%clk 0:00:30]}  Bxg2 {[%clk 0:02:05]} 22. Kxg2 {[%clk 0:00:29]}  Qe4+ {[%clk 0:02:05]} 23. Kf2 {[%clk 0:00:22]}  Nxe5 {[%clk 0:02:03]} 24. Bxh6 {[%clk 0:00:14]}  Qf3+ {[%clk 0:01:50]} 25. Kg1 {[%clk 0:00:14]}  Rxd1 {[%clk 0:01:50]} 26. Qxd1 {[%clk 0:00:14]}  Qxg3+ {[%clk 0:01:51]} 27. Kh1 {[%clk 0:00:15]}  Qxh3+ {[%clk 0:01:51]} 28. Kg1 {[%clk 0:00:16]}  Qxh6 {[%clk 0:01:52]} 29. Rf2 {[%clk 0:00:17]}  Ng6 {[%clk 0:01:44]} 30. Rg2 {[%clk 0:00:18]}  Kg7 {[%clk 0:01:44]} 31. Qd7 {[%clk 0:00:15]}  Rh8 {[%clk 0:01:40]} 32. Kf1 {[%clk 0:00:11]}  Qc1+ {[%clk 0:01:40]} 33. Kf2 {[%clk 0:00:11]}  Qc2+ {[%clk 0:01:39]} 34. Kg1 {[%clk 0:00:12]}  Qb1+ {[%clk 0:01:38]} 35. Kf2 {[%clk 0:00:12]}  Qxa2+ {[%clk 0:01:39]} 36. Kg1 {[%clk 0:00:12]}  Qe6 {[%clk 0:01:38]} 37. Qd2 {[%clk 0:00:11]}  Rh5 {[%clk 0:01:35]} 38. Re2 {[%clk 0:00:10]}  Rg5+ {[%clk 0:01:35]} 39. Kf1 {[%clk 0:00:11]}  Qf5+ {[%clk 0:01:35]} 40. Rf2 {[%clk 0:00:10]}  Qb1+ {[%clk 0:01:35]} 41. Ke2 {[%clk 0:00:11]}  Re5+ {[%clk 0:01:35]} 42. Kf3 {[%clk 0:00:11]}  Qe4+ {[%clk 0:01:35]} 43. Kg3 {[%clk 0:00:11]}  Rg5+ {[%clk 0:01:36]} 44. Kh3 {[%clk 0:00:11]}  Qh4# {[%clk 0:01:36]} 0-1


[Site "https://www.chess.com"]